[Event "Titled Tuesday Blitz June 20 Late 2023"]
[White "Melikhov, Evgeny V."]
[Black "Quirke, Jeffrey"]
[WhiteFideId "4122046"]
[BlackFideId "2013029"]
[WhiteElo "2158"]
[BlackElo "2224"]
[Result "1/2-1/2"]
[Round "9"]
[TimeControl "180+2"]
[Date "2023.06.20"]
[WhiteClock "0:00:06"]
[BlackClock "0:00:04"]
[Board "101"]

1. d4 {[%clk 0:02:58]}  e6 {[%clk 0:02:59]} 2. c4 {[%clk 0:02:58]}  b6 {[%clk 0:02:59]} 3. Nc3 {[%clk 0:02:57]}  Bb7 {[%clk 0:02:58]} 4. e4 {[%clk 0:02:57]}  Bb4 {[%clk 0:02:58]} 5. e5 {[%clk 0:02:57]}  Ne7 {[%clk 0:02:53]} 6. Nf3 {[%clk 0:02:57]}  O-O {[%clk 0:02:52]} 7. Bd3 {[%clk 0:02:56]}  f6 {[%clk 0:02:35]} 8. exf6 {[%clk 0:02:51]}  Rxf6 {[%clk 0:02:35]} 9. Bg5 {[%clk 0:02:48]}  Rf8 {[%clk 0:02:16]} 10. a3 {[%clk 0:02:39]}  Bxc3+ {[%clk 0:02:16]} 11. bxc3 {[%clk 0:02:39]}  Qe8 {[%clk 0:02:16]} 12. Qe2 {[%clk 0:02:09]}  Ng6 {[%clk 0:02:01]} 13. Be4 {[%clk 0:01:48]}  Bxe4 {[%clk 0:01:59]} 14. Qxe4 {[%clk 0:01:48]}  Nc6 {[%clk 0:01:59]} 15. O-O {[%clk 0:01:41]}  Qf7 {[%clk 0:01:33]} 16. d5 {[%clk 0:01:34]}  exd5 {[%clk 0:01:29]} 17. cxd5 {[%clk 0:01:34]}  Rae8 {[%clk 0:01:28]} 18. Qd3 {[%clk 0:01:27]}  Nce5 {[%clk 0:01:19]} 19. Nxe5 {[%clk 0:01:27]}  Nxe5 {[%clk 0:01:16]} 20. Qb5 {[%clk 0:01:11]}  Qg6 {[%clk 0:01:09]} 21. Be3 {[%clk 0:01:03]}  d6 {[%clk 0:00:54]} 22. Kh1 {[%clk 0:00:55]}  Qh5 {[%clk 0:00:51]} 23. Bd4 {[%clk 0:00:53]}  Ng4 {[%clk 0:00:49]} 24. h3 {[%clk 0:00:53]}  Re7 {[%clk 0:00:31]} 25. Qd3 {[%clk 0:00:47]}  Ne5 {[%clk 0:00:25]} 26. Bxe5 {[%clk 0:00:47]}  Qxe5 {[%clk 0:00:23]} 27. Rad1 {[%clk 0:00:40]}  Rf4 {[%clk 0:00:21]} 28. Kg1 {[%clk 0:00:34]}  g6 {[%clk 0:00:20]} 29. c4 {[%clk 0:00:22]}  a5 {[%clk 0:00:19]} 30. Rde1 {[%clk 0:00:20]}  Qxe1 {[%clk 0:00:18]} 31. Rxe1 {[%clk 0:00:21]}  Rxe1+ {[%clk 0:00:18]} 32. Kh2 {[%clk 0:00:21]}  Re5 {[%clk 0:00:18]} 33. Kg3 {[%clk 0:00:19]}  Ref5 {[%clk 0:00:15]} 34. f3 {[%clk 0:00:18]}  h5 {[%clk 0:00:14]} 35. Qe3 {[%clk 0:00:16]}  Kg7 {[%clk 0:00:14]} 36. Qe7+ {[%clk 0:00:15]}  Rf7 {[%clk 0:00:14]} 37. Qe6 {[%clk 0:00:15]}  R4f6 {[%clk 0:00:14]} 38. Qe8 {[%clk 0:00:15]}  Rf8 {[%clk 0:00:13]} 39. Qe7+ {[%clk 0:00:15]}  R8f7 {[%clk 0:00:14]} 40. Qe8 {[%clk 0:00:15]}  Rf8 {[%clk 0:00:14]} 41. Qe4 {[%clk 0:00:12]}  R8f7 {[%clk 0:00:13]} 42. Qd4 {[%clk 0:00:12]}  Re7 {[%clk 0:00:12]} 43. a4 {[%clk 0:00:10]}  Kf7 {[%clk 0:00:11]} 44. h4 {[%clk 0:00:10]}  Rf5 {[%clk 0:00:11]} 45. Kh3 {[%clk 0:00:09]}  Rfe5 {[%clk 0:00:10]} 46. Qf4+ {[%clk 0:00:09]}  Kg7 {[%clk 0:00:10]} 47. g4 {[%clk 0:00:07]}  hxg4+ {[%clk 0:00:09]} 48. Qxg4 {[%clk 0:00:08]}  Rf5 {[%clk 0:00:07]} 49. Kg3 {[%clk 0:00:07]}  Ref7 {[%clk 0:00:07]} 50. f4 {[%clk 0:00:05]}  Rxf4 {[%clk 0:00:07]} 51. Qxf4 {[%clk 0:00:04]}  Rxf4 {[%clk 0:00:07]} 52. Kxf4 {[%clk 0:00:05]}  Kf6 {[%clk 0:00:08]} 53. Kg4 {[%clk 0:00:05]}  Kf7 {[%clk 0:00:05]} 54. Kg5 {[%clk 0:00:04]}  Kg7 {[%clk 0:00:05]} 55. Kg4 {[%clk 0:00:05]}  Kh6 {[%clk 0:00:05]} 56. Kh3 {[%clk 0:00:04]}  Kh5 {[%clk 0:00:05]} 57. Kg3 {[%clk 0:00:04]}  g5 {[%clk 0:00:06]} 58. hxg5 {[%clk 0:00:03]}  Kxg5 {[%clk 0:00:07]} 59. Kf3 {[%clk 0:00:03]}  Kf5 {[%clk 0:00:07]} 60. Ke3 {[%clk 0:00:04]}  Ke5 {[%clk 0:00:05]} 61. Kd3 {[%clk 0:00:04]}  Kf4 {[%clk 0:00:05]} 62. Kd4 {[%clk 0:00:04]}  Kf3 {[%clk 0:00:05]} 63. Kd3 {[%clk 0:00:04]}  Kf4 {[%clk 0:00:04]} 64. Kd4 {[%clk 0:00:04]}  Kf3 {[%clk 0:00:05]} 65. Kd3 {[%clk 0:00:05]}  Kf2 {[%clk 0:00:04]} 66. Kd2 {[%clk 0:00:05]}  Kf3 {[%clk 0:00:04]} 67. Kd3 {[%clk 0:00:06]} 1/2-1/2


[Site "https://www.chess.com"]

[Event "Titled Tuesday Blitz June 20 Late 2023"]
[White "Tobares, Leandro"]
[Black "Slavin, Alexey"]
[WhiteFideId "106402"]
[BlackFideId "24104388"]
[WhiteElo "2292"]
[BlackElo "2264"]
[Result "0-1"]
[Round "9"]
[TimeControl "180+2"]
[Date "2023.06.20"]
[WhiteClock "0:00:14"]
[BlackClock "0:00:09"]
[Board "103"]

1. d4 {[%clk 0:02:56]}  Nc6 {[%clk 0:02:59]} 2. c4 {[%clk 0:02:55]}  e5 {[%clk 0:02:59]} 3. d5 {[%clk 0:02:55]}  Nce7 {[%clk 0:02:59]} 4. Nc3 {[%clk 0:02:54]}  Ng6 {[%clk 0:02:59]} 5. g3 {[%clk 0:02:54]}  Bc5 {[%clk 0:02:59]} 6. Bg2 {[%clk 0:02:53]}  d6 {[%clk 0:02:59]} 7. Nf3 {[%clk 0:02:53]}  a6 {[%clk 0:02:59]} 8. O-O {[%clk 0:02:51]}  h6 {[%clk 0:02:56]} 9. e4 {[%clk 0:02:49]}  Nf6 {[%clk 0:02:56]} 10. Ne1 {[%clk 0:02:46]}  O-O {[%clk 0:02:55]} 11. Nd3 {[%clk 0:02:45]}  Ba7 {[%clk 0:02:55]} 12. h3 {[%clk 0:02:44]}  Bd7 {[%clk 0:02:55]} 13. Kh2 {[%clk 0:02:43]}  Nh7 {[%clk 0:02:54]} 14. Qe2 {[%clk 0:02:37]}  Qe7 {[%clk 0:02:54]} 15. b4 {[%clk 0:02:35]}  Rae8 {[%clk 0:02:50]} 16. Be3 {[%clk 0:02:34]}  Bxe3 {[%clk 0:02:47]} 17. Qxe3 {[%clk 0:02:32]}  f5 {[%clk 0:02:44]} 18. exf5 {[%clk 0:02:31]}  Bxf5 {[%clk 0:02:43]} 19. Be4 {[%clk 0:02:26]}  Qd7 {[%clk 0:02:35]} 20. c5 {[%clk 0:02:25]}  Nf6 {[%clk 0:02:32]} 21. c6 {[%clk 0:02:18]}  bxc6 {[%clk 0:02:23]} 22. dxc6 {[%clk 0:02:18]}  Qc8 {[%clk 0:02:23]} 23. Bxf5 {[%clk 0:01:57]}  Qxf5 {[%clk 0:02:22]} 24. Rac1 {[%clk 0:01:53]}  Ne7 {[%clk 0:02:12]} 25. b5 {[%clk 0:01:42]}  axb5 {[%clk 0:01:51]} 26. Nxb5 {[%clk 0:01:41]}  Ned5 {[%clk 0:01:51]} 27. Qe2 {[%clk 0:01:33]}  e4 {[%clk 0:01:29]} 28. Nb2 {[%clk 0:01:33]}  e3 {[%clk 0:01:16]} 29. f3 {[%clk 0:01:22]}  Qc8 {[%clk 0:00:57]} 30. Qc4 {[%clk 0:01:17]}  Kh8 {[%clk 0:00:57]} 31. Nd3 {[%clk 0:01:10]}  e2 {[%clk 0:00:51]} 32. Rfe1 {[%clk 0:01:09]}  Qf5 {[%clk 0:00:45]} 33. f4 {[%clk 0:00:57]}  Qh5 {[%clk 0:00:39]} 34. Nf2 {[%clk 0:00:54]}  Qf3 {[%clk 0:00:35]} 35. Qd4 {[%clk 0:00:47]}  Re3 {[%clk 0:00:32]} 36. Nh1 {[%clk 0:00:44]}  Rfe8 {[%clk 0:00:20]} 37. Nxc7 {[%clk 0:00:33]}  Nxc7 {[%clk 0:00:18]} 38. Qxd6 {[%clk 0:00:33]}  Ne4 {[%clk 0:00:13]} 39. Qxc7 {[%clk 0:00:21]}  Nxg3 {[%clk 0:00:13]} 40. f5 {[%clk 0:00:19]}  Nxh1 {[%clk 0:00:09]} 41. Rxh1 {[%clk 0:00:14]}  Qf2# {[%clk 0:00:09]} 0-1


[Site "https://www.chess.com"]

[Event "Titled Tuesday Blitz June 20 Late 2023"]
[White "Florianovitz, Derlei Alex"]
[Black "Ozalp, Burak"]
[WhiteFideId "2114178"]
[BlackFideId "6314210"]
[WhiteElo "1953"]
[BlackElo "2106"]
[Result "0-1"]
[Round "9"]
[TimeControl "180+2"]
[Date "2023.06.20"]
[WhiteClock "0:00:00"]
[BlackClock "0:01:08"]
[Board "104"]

1. e4 {[%clk 0:03:00]}  c5 {[%clk 0:03:00]} 2. Nf3 {[%clk 0:02:59]}  Nc6 {[%clk 0:03:00]} 3. d4 {[%clk 0:03:00]}  cxd4 {[%clk 0:03:01]} 4. Nxd4 {[%clk 0:03:00]}  Nf6 {[%clk 0:03:02]} 5. Nc3 {[%clk 0:03:00]}  g6 {[%clk 0:03:02]} 6. Nxc6 {[%clk 0:02:58]}  bxc6 {[%clk 0:03:01]} 7. e5 {[%clk 0:02:59]}  Ng8 {[%clk 0:02:46]} 8. Bc4 {[%clk 0:02:55]}  d5 {[%clk 0:02:37]} 9. exd6 {[%clk 0:02:53]}  Qxd6 {[%clk 0:02:30]} 10. Qf3 {[%clk 0:02:38]}  Nf6 {[%clk 0:02:19]} 11. O-O {[%clk 0:02:16]}  Bg4 {[%clk 0:02:20]} 12. Qg3 {[%clk 0:02:09]}  Qxg3 {[%clk 0:02:18]} 13. hxg3 {[%clk 0:02:10]}  Bg7 {[%clk 0:02:18]} 14. Bf4 {[%clk 0:02:05]}  O-O {[%clk 0:02:17]} 15. Rfe1 {[%clk 0:02:05]}  e6 {[%clk 0:02:08]} 16. f3 {[%clk 0:01:52]}  Bf5 {[%clk 0:02:08]} 17. Bb3 {[%clk 0:01:52]}  h5 {[%clk 0:02:07]} 18. Be5 {[%clk 0:01:48]}  Nd5 {[%clk 0:02:01]} 19. Bxg7 {[%clk 0:01:28]}  Kxg7 {[%clk 0:02:02]} 20. Na4 {[%clk 0:01:28]}  Nb4 {[%clk 0:01:55]} 21. Re2 {[%clk 0:01:19]}  Rad8 {[%clk 0:01:53]} 22. Nc5 {[%clk 0:01:15]}  Rd6 {[%clk 0:01:49]} 23. Rae1 {[%clk 0:01:10]}  Kf6 {[%clk 0:01:43]} 24. c3 {[%clk 0:01:00]}  Nd3 {[%clk 0:01:40]} 25. Nxd3 {[%clk 0:00:57]}  Bxd3 {[%clk 0:01:41]} 26. Rd2 {[%clk 0:00:55]}  Rfd8 {[%clk 0:01:40]} 27. Red1 {[%clk 0:00:52]}  Ke7 {[%clk 0:01:41]} 28. Kf2 {[%clk 0:00:52]}  c5 {[%clk 0:01:38]} 29. c4 {[%clk 0:00:45]}  e5 {[%clk 0:01:39]} 30. Ke3 {[%clk 0:00:44]}  Bf5 {[%clk 0:01:37]} 31. Rxd6 {[%clk 0:00:41]}  Rxd6 {[%clk 0:01:38]} 32. Rxd6 {[%clk 0:00:41]}  Kxd6 {[%clk 0:01:39]} 33. Ba4 {[%clk 0:00:33]}  Be6 {[%clk 0:01:35]} 34. Bb5 {[%clk 0:00:29]}  g5 {[%clk 0:01:31]} 35. a3 {[%clk 0:00:26]}  a5 {[%clk 0:01:19]} 36. Ba6 {[%clk 0:00:16]}  f6 {[%clk 0:01:16]} 37. Bb5 {[%clk 0:00:15]}  Bc8 {[%clk 0:01:14]} 38. Ke4 {[%clk 0:00:13]}  h4 {[%clk 0:01:08]} 39. gxh4 {[%clk 0:00:12]}  gxh4 {[%clk 0:01:08]} 40. b3 {[%clk 0:00:05]}  h3 {[%clk 0:01:09]} 41. gxh3 {[%clk 0:00:05]}  Bxh3 {[%clk 0:01:10]} 42. Ba4 {[%clk 0:00:03]}  Bf1 {[%clk 0:01:09]} 43. Kf5 {[%clk 0:00:01]}  Ke7 {[%clk 0:01:09]} 44. f4 {[%clk 0:00:01]}  exf4 {[%clk 0:01:08]} 45. Kxf4 {[%clk 0:00:00]}  Bd3 {[%clk 0:01:08]} 0-1


[Site "https://www.chess.com"]

[Event "Titled Tuesday Blitz June 20 Late 2023"]
[White "Bruedigam, Martin"]
[Black "Kornyukov, Alexey"]
[WhiteFideId "24608033"]
[BlackFideId "4150457"]
[WhiteElo "2331"]
[BlackElo "2352"]
[Result "1-0"]
[Round "9"]
[TimeControl "180+2"]
[Date "2023.06.20"]
[WhiteClock "0:01:09"]
[BlackClock "0:00:00"]
[Board "105"]

1. Nf3 {[%clk 0:03:00]}  d5 {[%clk 0:02:59]} 2. e3 {[%clk 0:03:01]}  c5 {[%clk 0:02:54]} 3. b3 {[%clk 0:02:56]}  Nc6 {[%clk 0:02:43]} 4. Bb5 {[%clk 0:02:55]}  Bd7 {[%clk 0:02:36]} 5. Bb2 {[%clk 0:02:54]}  Nf6 {[%clk 0:02:27]} 6. O-O {[%clk 0:02:52]}  e6 {[%clk 0:02:25]} 7. c4 {[%clk 0:02:50]}  Bd6 {[%clk 0:02:18]} 8. cxd5 {[%clk 0:02:47]}  exd5 {[%clk 0:02:17]} 9. d4 {[%clk 0:02:47]}  cxd4 {[%clk 0:02:09]} 10. Nxd4 {[%clk 0:02:46]}  O-O {[%clk 0:02:06]} 11. Nxc6 {[%clk 0:02:39]}  bxc6 {[%clk 0:01:55]} 12. Be2 {[%clk 0:02:39]}  Re8 {[%clk 0:01:49]} 13. Nc3 {[%clk 0:02:38]}  Qe7 {[%clk 0:01:48]} 14. Bf3 {[%clk 0:02:36]}  Rab8 {[%clk 0:01:42]} 15. Rc1 {[%clk 0:02:34]}  h5 {[%clk 0:01:11]} 16. Ne2 {[%clk 0:02:29]}  h4 {[%clk 0:01:09]} 17. Qd4 {[%clk 0:02:22]}  c5 {[%clk 0:00:59]} 18. Qxh4 {[%clk 0:02:20]}  Bc6 {[%clk 0:00:21]} 19. Rfd1 {[%clk 0:02:11]}  Ne4 {[%clk 0:00:19]} 20. Qxe7 {[%clk 0:02:09]}  Rxe7 {[%clk 0:00:20]} 21. Nc3 {[%clk 0:02:03]}  Nxc3 {[%clk 0:00:14]} 22. Bxc3 {[%clk 0:02:03]}  d4 {[%clk 0:00:12]} 23. exd4 {[%clk 0:02:02]}  Bxf3 {[%clk 0:00:12]} 24. gxf3 {[%clk 0:01:58]}  Bf4 {[%clk 0:00:12]} 25. Bd2 {[%clk 0:01:54]}  Bxd2 {[%clk 0:00:10]} 26. Rxd2 {[%clk 0:01:55]}  cxd4 {[%clk 0:00:10]} 27. Rxd4 {[%clk 0:01:50]}  Re2 {[%clk 0:00:11]} 28. Rc7 {[%clk 0:01:40]}  Rxa2 {[%clk 0:00:10]} 29. Rdd7 {[%clk 0:01:39]}  Rf8 {[%clk 0:00:08]} 30. Rxa7 {[%clk 0:01:39]}  Rxa7 {[%clk 0:00:08]} 31. Rxa7 {[%clk 0:01:38]}  Rb8 {[%clk 0:00:09]} 32. Ra3 {[%clk 0:01:38]}  g5 {[%clk 0:00:07]} 33. Kg2 {[%clk 0:01:33]}  Kg7 {[%clk 0:00:07]} 34. Kg3 {[%clk 0:01:32]}  Rb4 {[%clk 0:00:07]} 35. f4 {[%clk 0:01:25]}  Rxf4 {[%clk 0:00:05]} 36. Ra4 {[%clk 0:01:22]}  Rf5 {[%clk 0:00:05]} 37. Rb4 {[%clk 0:01:22]}  Kg6 {[%clk 0:00:05]} 38. Rb6+ {[%clk 0:01:21]}  f6 {[%clk 0:00:05]} 39. h3 {[%clk 0:01:16]}  Rf4 {[%clk 0:00:05]} 40. Rb8 {[%clk 0:01:14]}  Kf5 {[%clk 0:00:04]} 41. b4 {[%clk 0:01:13]}  Rc4 {[%clk 0:00:04]} 42. b5 {[%clk 0:01:11]}  Rc3+ {[%clk 0:00:04]} 43. f3 {[%clk 0:01:11]}  Rb3 {[%clk 0:00:04]} 44. b6 {[%clk 0:01:11]}  Kg6 {[%clk 0:00:00]} 45. Kf2 {[%clk 0:01:09]} 1-0


[Site "https://www.chess.com"]

[Event "Titled Tuesday Blitz June 20 Late 2023"]
[White "Stanisz, Patryk"]
[Black "Tarnowska, Aleksandra"]
[WhiteFideId "1123106"]
[BlackFideId "1180967"]
[WhiteElo "2069"]
[BlackElo "1776"]
[Result "1/2-1/2"]
[Round "9"]
[TimeControl "180+2"]
[Date "2023.06.20"]
[WhiteClock "0:00:03"]
[BlackClock "0:00:02"]
[Board "108"]

1. Nf3 {[%clk 0:03:00]}  d5 {[%clk 0:02:59]} 2. c4 {[%clk 0:03:00]}  c6 {[%clk 0:02:54]} 3. e3 {[%clk 0:03:00]}  Nf6 {[%clk 0:02:53]} 4. b3 {[%clk 0:03:00]}  Bg4 {[%clk 0:02:48]} 5. Bb2 {[%clk 0:02:59]}  e6 {[%clk 0:02:46]} 6. Be2 {[%clk 0:02:59]}  Bd6 {[%clk 0:02:42]} 7. Ne5 {[%clk 0:02:59]}  Bxe2 {[%clk 0:02:37]} 8. Qxe2 {[%clk 0:03:00]}  Qc7 {[%clk 0:02:32]} 9. f4 {[%clk 0:02:48]}  Nbd7 {[%clk 0:02:24]} 10. d4 {[%clk 0:02:36]}  Bb4+ {[%clk 0:02:10]} 11. Bc3 {[%clk 0:02:36]}  Qa5 {[%clk 0:01:53]} 12. Bxb4 {[%clk 0:02:36]}  Qxb4+ {[%clk 0:01:53]} 13. Qd2 {[%clk 0:02:34]}  Qxd2+ {[%clk 0:01:51]} 14. Nxd2 {[%clk 0:02:35]}  Nxe5 {[%clk 0:01:46]} 15. fxe5 {[%clk 0:02:35]}  Ng4 {[%clk 0:01:28]} 16. Ke2 {[%clk 0:02:22]}  h5 {[%clk 0:00:49]} 17. c5 {[%clk 0:02:08]}  h4 {[%clk 0:00:47]} 18. b4 {[%clk 0:02:07]}  a6 {[%clk 0:00:46]} 19. a4 {[%clk 0:02:06]}  Ke7 {[%clk 0:00:42]} 20. e4 {[%clk 0:01:51]}  Rad8 {[%clk 0:00:36]} 21. exd5 {[%clk 0:01:48]}  Rxd5 {[%clk 0:00:36]} 22. Nf3 {[%clk 0:01:47]}  h3 {[%clk 0:00:30]} 23. g3 {[%clk 0:01:44]}  Nh6 {[%clk 0:00:28]} 24. b5 {[%clk 0:01:27]}  Nf5 {[%clk 0:00:25]} 25. bxc6 {[%clk 0:00:51]}  bxc6 {[%clk 0:00:22]} 26. Rab1 {[%clk 0:00:45]}  Nxd4+ {[%clk 0:00:22]} 27. Nxd4 {[%clk 0:00:46]}  Rxd4 {[%clk 0:00:22]} 28. Rb7+ {[%clk 0:00:45]}  Rd7 {[%clk 0:00:23]} 29. Rhb1 {[%clk 0:00:44]}  Rd8 {[%clk 0:00:20]} 30. R1b6 {[%clk 0:00:42]}  Ra8 {[%clk 0:00:08]} 31. Rxd7+ {[%clk 0:00:38]}  Kxd7 {[%clk 0:00:09]} 32. Rb7+ {[%clk 0:00:39]}  Ke8 {[%clk 0:00:07]} 33. Rc7 {[%clk 0:00:39]}  Rb8 {[%clk 0:00:07]} 34. Rxc6 {[%clk 0:00:23]}  Rb2+ {[%clk 0:00:07]} 35. Kf3 {[%clk 0:00:23]}  Rxh2 {[%clk 0:00:08]} 36. Rxa6 {[%clk 0:00:23]}  Rc2 {[%clk 0:00:07]} 37. Ra8+ {[%clk 0:00:04]}  Kd7 {[%clk 0:00:07]} 38. Rh8 {[%clk 0:00:04]}  h2 {[%clk 0:00:06]} 39. Ke4 {[%clk 0:00:02]}  Kc6 {[%clk 0:00:06]} 40. Kd4 {[%clk 0:00:02]}  Rd2+ {[%clk 0:00:06]} 41. Kc4 {[%clk 0:00:03]}  Rc2+ {[%clk 0:00:06]} 42. Kb4 {[%clk 0:00:03]}  Rb2+ {[%clk 0:00:07]} 43. Ka3 {[%clk 0:00:04]}  Rg2 {[%clk 0:00:07]} 44. Rc8+ {[%clk 0:00:01]}  Kb7 {[%clk 0:00:06]} 45. Rh8 {[%clk 0:00:02]}  Rxg3+ {[%clk 0:00:06]} 46. Kb4 {[%clk 0:00:01]}  Rg2 {[%clk 0:00:05]} 47. a5 {[%clk 0:00:01]}  Rb2+ {[%clk 0:00:04]} 48. Kc4 {[%clk 0:00:01]}  Rc2+ {[%clk 0:00:04]} 49. Kb5 {[%clk 0:00:02]}  Rb2+ {[%clk 0:00:05]} 50. Ka4 {[%clk 0:00:03]}  Kc6 {[%clk 0:00:05]} 51. Rc8+ {[%clk 0:00:02]}  Kb7 {[%clk 0:00:04]} 52. Rh8 {[%clk 0:00:02]}  Kc6 {[%clk 0:00:05]} 53. a6 {[%clk 0:00:02]}  Ra2+ {[%clk 0:00:04]} 54. Kb4 {[%clk 0:00:02]}  Rb2+ {[%clk 0:00:04]} 55. Ka5 {[%clk 0:00:02]}  Kxc5 {[%clk 0:00:04]} 56. Rc8+ {[%clk 0:00:02]}  Kd5 {[%clk 0:00:04]} 57. Rh8 {[%clk 0:00:02]}  Kc5 {[%clk 0:00:03]} 58. Rc8+ {[%clk 0:00:02]}  Kd5 {[%clk 0:00:03]} 59. Rh8 {[%clk 0:00:03]}  Kc5 {[%clk 0:00:02]} 1/2-1/2


[Site "https://www.chess.com"]

[Event "Titled Tuesday Blitz June 20 Late 2023"]
[White "Ward, Ieuan C"]
[Black "Bongo Akanga Ndjila, Barthelemy"]
[WhiteFideId "406627"]
[BlackFideId "10609431"]
[WhiteElo "2270"]
[BlackElo "1768"]
[Result "1-0"]
[Round "9"]
[TimeControl "180+2"]
[Date "2023.06.20"]
[WhiteClock "0:00:08"]
[BlackClock "0:00:10"]
[Board "109"]

1. d4 {[%clk 0:03:00]}  d5 {[%clk 0:02:56]} 2. c4 {[%clk 0:03:00]}  e6 {[%clk 0:02:56]} 3. Nc3 {[%clk 0:02:59]}  Nf6 {[%clk 0:02:56]} 4. Nf3 {[%clk 0:02:58]}  Be7 {[%clk 0:02:56]} 5. Bg5 {[%clk 0:02:55]}  O-O {[%clk 0:02:56]} 6. e3 {[%clk 0:02:55]}  h6 {[%clk 0:02:55]} 7. Bh4 {[%clk 0:02:55]}  Nbd7 {[%clk 0:02:53]} 8. cxd5 {[%clk 0:02:53]}  exd5 {[%clk 0:02:52]} 9. Rc1 {[%clk 0:02:50]}  c6 {[%clk 0:02:49]} 10. Bd3 {[%clk 0:02:49]}  Re8 {[%clk 0:02:46]} 11. O-O {[%clk 0:02:48]}  b6 {[%clk 0:02:44]} 12. Qa4 {[%clk 0:02:40]}  Bb7 {[%clk 0:02:43]} 13. Rfd1 {[%clk 0:02:32]}  Ne4 {[%clk 0:02:32]} 14. Bxe7 {[%clk 0:02:27]}  Qxe7 {[%clk 0:02:29]} 15. b4 {[%clk 0:02:07]}  a5 {[%clk 0:02:24]} 16. bxa5 {[%clk 0:01:54]}  Rxa5 {[%clk 0:02:23]} 17. Qc2 {[%clk 0:01:52]}  Nxc3 {[%clk 0:02:22]} 18. Qxc3 {[%clk 0:01:51]}  Rxa2 {[%clk 0:02:21]} 19. Bb1 {[%clk 0:01:47]}  Ra3 {[%clk 0:02:16]} 20. Qc2 {[%clk 0:01:44]}  g6 {[%clk 0:02:07]} 21. Re1 {[%clk 0:01:44]}  c5 {[%clk 0:02:04]} 22. h3 {[%clk 0:01:28]}  Rc8 {[%clk 0:01:46]} 23. Qb2 {[%clk 0:01:24]}  c4 {[%clk 0:01:37]} 24. e4 {[%clk 0:01:09]}  dxe4 {[%clk 0:01:35]} 25. Bxe4 {[%clk 0:01:09]}  c3 {[%clk 0:01:19]} 26. Qc2 {[%clk 0:01:06]}  Bxe4 {[%clk 0:01:16]} 27. Rxe4 {[%clk 0:01:05]}  Qb4 {[%clk 0:01:12]} 28. Re3 {[%clk 0:00:56]}  Nf6 {[%clk 0:01:09]} 29. Ne5 {[%clk 0:00:48]}  Nd5 {[%clk 0:01:07]} 30. Rg3 {[%clk 0:00:47]}  Qxd4 {[%clk 0:00:59]} 31. Rxg6+ {[%clk 0:00:45]}  Kf8 {[%clk 0:00:55]} 32. Nxf7 {[%clk 0:00:27]}  Kxf7 {[%clk 0:00:51]} 33. Qf5+ {[%clk 0:00:27]}  Nf6 {[%clk 0:00:50]} 34. Rxf6+ {[%clk 0:00:20]}  Qxf6 {[%clk 0:00:50]} 35. Qxc8 {[%clk 0:00:21]}  Qd4 {[%clk 0:00:34]} 36. Qf5+ {[%clk 0:00:19]}  Kg7 {[%clk 0:00:31]} 37. Re1 {[%clk 0:00:19]}  Ra7 {[%clk 0:00:24]} 38. Re6 {[%clk 0:00:14]}  Rf7 {[%clk 0:00:10]} 39. Rg6+ {[%clk 0:00:08]}  Kf8 {[%clk 0:00:10]} 40. Qc8+ {[%clk 0:00:08]}  Ke7 {[%clk 0:00:10]} 41. Re6# {[%clk 0:00:08]} 1-0


[Site "https://www.chess.com"]

[Event "Titled Tuesday Blitz June 20 Late 2023"]
[White "Pein, Jonathan"]
[Black "Thiel, Thomas"]
[WhiteFideId "417092"]
[BlackFideId "4615964"]
[WhiteElo "2151"]
[BlackElo "2195"]
[Result "1/2-1/2"]
[Round "9"]
[TimeControl "180+2"]
[Date "2023.06.20"]
[WhiteClock "0:01:12"]
[BlackClock "0:01:04"]
[Board "111"]

1. Nf3 {[%clk 0:02:59]}  Nf6 {[%clk 0:02:57]} 2. d4 {[%clk 0:02:58]}  d5 {[%clk 0:02:54]} 3. Nbd2 {[%clk 0:02:58]}  g6 {[%clk 0:02:51]} 4. Nb3 {[%clk 0:02:56]}  Bg7 {[%clk 0:02:50]} 5. Bf4 {[%clk 0:02:55]}  O-O {[%clk 0:02:48]} 6. h3 {[%clk 0:02:56]}  Bf5 {[%clk 0:02:45]} 7. e3 {[%clk 0:02:55]}  Nbd7 {[%clk 0:02:44]} 8. c4 {[%clk 0:02:53]}  c6 {[%clk 0:02:40]} 9. Rc1 {[%clk 0:02:53]}  Rc8 {[%clk 0:02:33]} 10. Ne5 {[%clk 0:02:50]}  Nxe5 {[%clk 0:02:20]} 11. Bxe5 {[%clk 0:02:51]}  Nd7 {[%clk 0:02:18]} 12. Bxg7 {[%clk 0:02:52]}  Kxg7 {[%clk 0:02:16]} 13. Be2 {[%clk 0:02:47]}  e5 {[%clk 0:02:14]} 14. dxe5 {[%clk 0:02:39]}  dxc4 {[%clk 0:02:06]} 15. Nd4 {[%clk 0:02:30]}  Bd3 {[%clk 0:02:02]} 16. Bxd3 {[%clk 0:02:24]}  cxd3 {[%clk 0:02:03]} 17. e6 {[%clk 0:02:25]}  Ne5 {[%clk 0:01:25]} 18. f4 {[%clk 0:02:25]}  Qh4+ {[%clk 0:01:23]} 19. Kf1 {[%clk 0:02:17]}  fxe6 {[%clk 0:01:19]} 20. Nxe6+ {[%clk 0:02:16]}  Kg8 {[%clk 0:01:18]} 21. Nxf8 {[%clk 0:02:04]}  Rxf8 {[%clk 0:01:19]} 22. Qb3+ {[%clk 0:02:04]}  Kg7 {[%clk 0:01:08]} 23. Qc3 {[%clk 0:02:01]}  Rxf4+ {[%clk 0:01:07]} 24. exf4 {[%clk 0:02:01]}  Qxf4+ {[%clk 0:01:06]} 25. Kg1 {[%clk 0:02:02]}  Qe3+ {[%clk 0:01:06]} 26. Kf1 {[%clk 0:01:53]}  Qf4+ {[%clk 0:01:05]} 27. Ke1 {[%clk 0:01:48]}  Qe4+ {[%clk 0:01:05]} 28. Kf2 {[%clk 0:01:43]}  Qe2+ {[%clk 0:01:04]} 29. Kg3 {[%clk 0:01:34]}  Qe3+ {[%clk 0:01:05]} 30. Kh2 {[%clk 0:01:12]}  Qf4+ {[%clk 0:01:04]} 31. Kg1 {[%clk 0:01:13]}  Qe3+ {[%clk 0:01:04]} 32. Kh2 {[%clk 0:01:13]}  Qf4+ {[%clk 0:01:04]} 33. Kg1 {[%clk 0:01:12]} 1/2-1/2


[Site "https://www.chess.com"]